Cogmind - Beta 17 *** ADVENTURER MODE // 2026.06.28 @ 00:35:31 Player: Iris Result: Destroyed by G-34 Mercenary with Small Laser Performance ------------- Evolutions (1) 500 Regions Visited (3) 600 Robots Destroyed (23) 115 Value Destroyed (707) 707 Prototype IDs (0) 0 Alien Tech Used (0) 0 Bonus (0) 0 TOTAL SCORE: 1922 Bonus ------- None Cogmind --------- Core Integrity 0/400 Matter 154/300 Energy 91/100 System Corruption 2% Temperature Cool (20) Movement Core (50) Location -9/Mines Parts ------- > --- POWER (1) -------- (None) > --- PROPULSION (3) --- (None) > --- UTILITY (2) ------ Visual Processing Unit > --- WEAPON (3) ------- (None) > --- INVENTORY (5) ---- Wheel Peak State ------------ > --- POWER ------------ (None) > --- PROPULSION ------- Wheel Improved Hover Unit Improved Hover Unit > --- UTILITY ---------- Visual Processing Unit > --- WEAPON ----------- Beam Rifle Mini Grenade Launcher > --- INVENTORY -------- Wheel [Rating: 11] Favorites ----------- Power None Propulsion Compact Wheel Wheel Compact Wheel Hover Unit Improved Hover Unit Utility Visual Processing Unit Device Structural Scanner Processor Visual Processing Unit Weapon Assault Rifle Energy Gun Beam Rifle Energy Cannon Beam Cannon Ballistic Gun Assault Rifle Launcher Mini Grenade Launcher Build | -11 -10 -9 -9 ------- Run | Yrd Mat Mat Min Slots Evolved 2 | . . 2 . Power . | . . . . Propulsion 1 | . . 1 . Utility . | . . . . Weapon 1 | . . 1 . Parts Attached 13 | 3 1 9 . Power . | . . . . Engine . | . . . . Core . | . . . . Reactor . | . . . . Propulsion 6 | 2 . 4 . Treads . | . . . . Leg . | . . . . Wheel 4 | 2 . 2 . Hover 2 | . . 2 . Flight . | . . . . Utility 2 | . . 2 . Device 1 | . . 1 . Storage . | . . . . Processor 1 | . . 1 . Hackware . | . . . . Protection . | . . . . Artifact . | . . . . Weapon 5 | 1 1 3 . Energy Gun 2 | . . 2 . Energy Cannon 1 | . 1 . . Ballistic Gun 1 | 1 . . . Ballistic Cannon . | . . . . Launcher 1 | . . 1 . Special Weapon . | . . . . Impact Weapon . | . . . . Slashing Weapon . | . . . . Piercing Weapon . | . . . . Special Melee Weapon . | . . . . Unidentified Prototypes . | . . . . Parts Lost 11 | . . 6 5 Power . | . . . . Propulsion 5 | . . 2 3 Utility 1 | . . 1 . Weapon 5 | . . 3 2 Highest Loss Streak 5 | . . 4 5 To Critical Strikes . | . . . . Average Backups . | . . . 1 Power . | . . . . Propulsion . | . . . 1 Utility . | . . . . Weapon . | . . . . Tool/Special . | . . . . Unused Backups 1 | . 1 . . Power . | . . . . Propulsion . | . . . . Utility 1 | . 1 . . Weapon . | . . . . Tool/Special . | . . . . Average Slot Usage (%) 49 | . 49 47 62 Wheel 19 | . 28 12 11 Hover 2 | . . 2 20 Device 2 | . . 6 . Processor 5 | . . 10 11 Energy Gun 2 | . . 3 11 Energy Cannon 5 | . 7 4 . Ballistic Gun 9 | . 14 4 . Launcher 2 | . . 3 9 Peak Build Rating 11 | 3 4 11 11 Average Rating 4 | 1 3 6 10 On Entrance 4 | . 3 4 11 Avg Prop Armor Cover (%) 8 | . . 8 8 Naked Turns . | . . . . Heaviest Build 6 | 2 5 6 4 Greatest Support 32 | 32 32 32 14 Greatest Overweight (x) . | . . . . Average Overweight (x) . | . . . . Largest Inventory Capacity 5 | 5 5 5 5 Average Capacity 5 | 5 5 5 5 Most Carried 3 | 2 1 3 1 Average Carried . | . . . 1 Final Capacity 5 | 5 5 5 5 Final Carried 1 | . 1 1 1 Class Distribution -------------------- 100% | Mutant Dominant Class ---------------- Mutant | -10/Materials Mutant | -9/Materials Mutant | -9/Mines Resources | -11 -10 -9 -9 ----------- Run | Yrd Mat Mat Min Matter Collected 372 | . 224 148 . Remotely . | . . . . Salvage Created 745 | . 267 478 . Parts 47 | . 11 36 . Haulers Intercepted . | . . . . Recyclers Shooed 1 | . . 1 . Parts Field Recycled . | . . . . Retrieved Matter . | . . . . Parts Self-Destructed . | . . . . Prevented . | . . . . Parts Restored . | . . . . Kills | -11 -10 -9 -9 ------- Run | Yrd Mat Mat Min Combat Hostiles Destroyed 16 | . 5 11 . Guns 10 | . 5 5 . Cannons 1 | . . 1 . AOE 5 | . . 5 . Classes Destroyed 6 | . 2 4 . Builder 3 | . . 3 . Recycler 1 | . . 1 . Watcher 3 | . 2 1 . Grunt 10 | . 5 5 . Brawler 2 | . . 2 . Sentry 4 | . . 4 . Best Kill Streak 10 | . 3 10 . Combat Bots Only 6 | . 2 6 . Max Kills in Single Turn 3 | . 1 3 . Gunslinging . | . . . . Exploded 2 | . . 2 . Melee . | . . . . Uniques/NPCs Destroyed . | . . . . Combat | -11 -10 -9 -9 -------- Run | Yrd Mat Mat Min Hostile Shots Fired 139 | . 25 104 10 Missed 51 | . 8 39 4 Hits 88 | . 17 65 6 Melee 1 | . . . 1 Projectile 87 | . 17 65 5 Critical Strikes 4 | . . 3 1 Damage Taken 1064 | 1 162 798 103 Core 448 | . 47 382 19 Absorbed by Shields . | . . . . Ignored by Resistances 302 | . 51 224 27 Core Remaining (%) 90 | 100 81 . . Volleys Fired 57 | . 20 34 3 Largest 2 | . 2 2 2 Hottest 86 | . 80 86 86 Shots Fired 88 | . 28 56 4 Gun 57 | . 20 34 3 Cannon 19 | . 8 11 . Launcher 12 | . . 11 1 Special . | . . . . Kinetic 34 | . 20 14 . Thermal 35 | . 8 24 3 Explosive 12 | . . 11 1 Electromagnetic 7 | . . 7 . Robot Hit Streak 20 | . 12 19 20 Robot Miss Streak 3 | . 3 3 1 Penetration Max . | . . . . Secondary Targets . | . . . . Shots Hit Robots 73 | . 24 46 3 Core Hits 43 | . 12 30 1 Critical Kills . | . . . . Critical Parts Destroyed . | . . . . Critical Strikes 1 | . . 1 . Burn 1 | . . 1 . Melee Attacks . | . . . . Impact . | . . . . Slashing . | . . . . Piercing . | . . . . Sneak Attacks . | . . . . Combat Hostiles . | . . . . Follow-up Attacks . | . . . . Damage Inflicted 1808 | 2 338 1375 93 Guns 702 | . 249 408 45 Cannons 227 | . 86 141 . Explosions 843 | . . 795 48 Melee . | . . . . Ramming 36 | 2 3 31 . Kinetic 405 | . 249 156 . Thermal 459 | . 86 328 45 Explosive 843 | . . 795 48 Electromagnetic 65 | . . 65 . Impact . | . . . . Slashing . | . . . . Piercing . | . . . . Highest Corruption 2 | . 2 2 2 Average Corruption 1 | . 1 2 2 Corruption Purged . | . . . . Corruption Blocked . | . . . . Effects 5 | . 2 3 . Message Errors 2 | . 1 1 . Matter Fused 2 | . . 2 . Heat Flow Errors 1 | . 1 . . Overload Shots . | . . . . Overflow Damage 31 | . . 21 10 Projectiles . | . . . . Explosions 31 | . . 21 10 Melee . | . . . . Knockbacks . | . . . . Impact . | . . . . Kinetic . | . . . . Secondary . | . . . . Self-Inflicted Damage 105 | 1 1 72 31 Shots 4 | . . 3 1 Rammed 10 | 1 1 8 . Targets Rammed 10 | 1 1 8 . Kicked . | . . . . Crushed . | . . . . Highest Temperature 127 | . 124 127 19 Average Temperature 41 | . 44 43 10 Received Heat Transfer 576 | . 120 423 33 Siege Activations . | . . . . Martial Activations . | . . . . Shielding Activations . | . . . . Robots Disrupted . | . . . . Combat Hostiles . | . . . . Robots Corrupted . | . . . . Combat Hostiles . | . . . . Parts Fried . | . . . . Impact Corruptions . | . . . . Robots Melted . | . . . . Combat Hostiles . | . . . . Parts Melted . | . . . . Heat Transferred 1147 | . 185 851 111 Parts Sabotaged . | . . . . Parts Stolen . | . . . . Parts Stripped . | . . . . Power Chain Reactions . | . . . . Alert | -11 -10 -9 -9 ------- Run | Yrd Mat Mat Min Maximum Alert Level 1 | . . 1 . Low Security (%) 95 | 100 100 88 100 Level 1 4 | . . 11 . Level 2 . | . . . . Level 3 . | . . . . Level 4 . | . . . . Level 5 . | . . . . High Security . | . . . . Max Security . | . . . . Peak Influence 294 | . 57 294 90 Initial 90 | . . 5 90 Average 41 | . 13 73 81 Influence Increases 696 | . 158 524 14 Destroy 0b10 Robot/C 320 | . 100 220 . Destroy 0b10 Robot/NC 35 | . 10 25 . Destroy Leader 86 | . 24 62 . Disable Machine 18 | . 9 9 . Destroy Structure 57 | . . 43 14 Partial Spotted 15 | . . 15 . Lose Combat Pursuer 165 | . 15 150 . Influence Decreases 662 | . 143 265 254 Entered New Map 194 | . . 10 184 Time Decay 358 | . 143 195 20 Lost Part 110 | . . 60 50 Squads Dispatched 2 | . 1 1 . Investigation 1 | . 1 . . Extermination . | . . . . Reinforcement 1 | . . 1 . Assault . | . . . . Garrison . | . . . . Intercept . | . . . . Searches Triggered . | . . . . Construction Impeded . | . . . . Haulers Reinforced . | . . . . Active Scanning Responses . | . . . . Cargo Convoy Interrupts . | . . . . Stealth | -11 -10 -9 -9 --------- Run | Yrd Mat Mat Min Distress Signals 3 | . 2 1 . Communications Jammed . | . . . . Distress Signals . | . . . . Times Spotted 40 | . 11 24 5 Peak Tracking Total 7 | . 3 7 5 Tactical Retreats 7 | . 1 6 . Traps | -11 -10 -9 -9 ------- Run | Yrd Mat Mat Min Traps Triggered 3 | . 2 1 . Indirectly . | . . . . Trap Hack Attempts . | . . . . Triggered . | . . . . Disarmed . | . . . . Reprogrammed . | . . . . Reused . | . . . . Traps Extracted . | . . . . Installed . | . . . . Triggered . | . . . . Machines | -11 -10 -9 -9 ---------- Run | Yrd Mat Mat Min Machines Disabled 2 | . 1 1 . Max in Single Turn 1 | . 1 1 . Machines Repaired . | . . . . Machines Dismantled . | . . . . Machines Sabotaged . | . . . . Overloaded Fab Kills . | . . . . Hacking | -11 -10 -9 -9 --------- Run | Yrd Mat Mat Min Machines Accessed 3 | . 2 1 . Terminals 3 | . 2 1 . Fabricators . | . . . . Repair Stations . | . . . . Recycling Units . | . . . . Scanalyzers . | . . . . Garrison Access . | . . . . Total Hacks 6 | . 4 2 . Successful 3 | . 2 1 . Failed 3 | . 2 1 . Catastrophic . | . . . . Database Lockouts . | . . . . Manual . | . . . . Terminals 6 | . 4 2 . Fabricators . | . . . . Repair Stations . | . . . . Recycling Units . | . . . . Scanalyzers . | . . . . Garrison Access . | . . . . Terminal Hacks 3 | . 2 1 . Record 2 | . 2 . . Dispatch Records 1 | . . 1 . Fabricator Hacks . | . . . . Repair Station Hacks . | . . . . Recycling Unit Hacks . | . . . . Scanalyzer . | . . . . Garrison Access Hacks . | . . . . Unauthorized Hacks . | . . . . Terminals . | . . . . Fabricators . | . . . . Repair Stations . | . . . . Recycling Units . | . . . . Scanalyzers . | . . . . Garrison Access . | . . . . Data Cores Recovered . | . . . . Used . | . . . . Hacking Detections 1 | . 1 . . Full Trace Events 1 | . 1 . . Feedback Events . | . . . . Feedback Blocked . | . . . . Robot Schematics Acquired . | . . . . Robots Built . | . . . . Authchips . | . . . . Time . | . . . . Total Robot Build Rating . | . . . . Part Schematics Acquired . | . . . . Parts Built . | . . . . Authchips . | . . . . Time . | . . . . Total Part Build Rating . | . . . . Part Studies Acquired . | . . . . Parts Repaired . | . . . . Time . | . . . . Parts Recycled . | . . . . Recycled Matter . | . . . . Retrieved Matter . | . . . . Retrieved Components . | . . . . Parts Scanalyzed . | . . . . Part Schematics Acquired . | . . . . Parts Damaged . | . . . . Bothacking | -11 -10 -9 -9 ------------ Run | Yrd Mat Mat Min Used RIF Installer . | . . . . Robots Hacked . | . . . . Non-combat . | . . . . Combat . | . . . . Robot Hacks Applied . | . . . . Relay Couplers Released . | . . . . Fabnet Peak Effective % . | . . . . Robots Rewired . | . . . . Allies Hacked . | . . . . Hacks Repelled . | . . . . Allies | -11 -10 -9 -9 -------- Run | Yrd Mat Mat Min Total Allies . | . . . . Largest Group . | . . . . Highest-Rated Group . | . . . . Highest-Rated Ally . | . . . . Total Orders . | . . . . Ally Attacks . | . . . . Total Damage . | . . . . Kills . | . . . . Allies Corrupted . | . . . . Allies Melted . | . . . . Intel | -11 -10 -9 -9 ------- Run | Yrd Mat Mat Min Active Infowar (turns) 513 | . . 468 45 Optics 513 | . . 468 45 Structural 262 | . . 262 . Robot Analysis Total . | . . . . Derelict Logs Recovered . | . . . . Drone Launches . | . . . . Drone Recoveries . | . . . . Exploration | -11 -10 -9 -9 ------------- Run | Yrd Mat Mat Min Turns Passed 1101 | 56 518 482 45 Spaces Moved 1147 | 72 465 548 62 Core 352 | 46 . 305 1 Treads . | . . . . Legs . | . . . . Wheels 675 | 26 465 184 . Hover 120 | . . 59 61 Flight . | . . . . Fastest Speed 50 | 50 100 50 50 Average Speed 80 | 68 100 66 60 Slowest Speed 100 | 100 100 100 65 Overloaded Moves . | . . . . Propulsion Burnouts . | . . . . Robots Hopped . | . . . . Potential Cave-ins . | . . . . Cave-ins Triggered . | . . . . Exploration Rate (%) 30 | 3 53 47 19 Regions Visited 3 Branch Regions 1 Pre-discovered Areas . | . . . . Known Exits Taken . | . . . . Unknown Exits Taken 3 | 1 1 1 . Scrap Searched . | . . . . Spaces Dug . | . . . . Terrain Destroyed 53 | . . 39 14 Melee . | . . . . Projectile . | . . . . AOE 53 | . . 39 14 Terrain Rammed . | . . . . Walls Destroyed . | . . . . Machines Disabled . | . . . . Actions | -11 -10 -9 -9 --------- Run | Yrd Mat Mat Min Total 1240 | 78 490 607 65 Wait . | . . . . Move 1144 | 71 464 547 62 Hop . | . . . . Pick Up 14 | 3 3 8 . Fast Attach . | . . . . Attach 13 | 3 1 9 . Detach 1 | . . 1 . Swap . | . . . . Drop 1 | . 1 . . Fire 57 | . 20 34 3 Melee . | . . . . Ram 10 | 1 1 8 . Kick . | . . . . Crush . | . . . . Escape Stasis . | . . . . Rewire . | . . . . Trap . | . . . . Miscellaneous . | . . . . Route ------- -11/Scrapyard -10/Materials -9/Materials -9/Mines History --------- Turn | Location | Event 8 | -11/Scrapyard | Discovered new exit (range 16) 57 | -11/Scrapyard | Entered Materials 328 | -10/Materials | Build established: Mutant 419 | -10/Materials | Discovered new exit (range 11) 575 | -10/Materials | Entered another Materials area 575 | -9/Materials | Evolved 2 slots: Propulsion x1, Weapon x1 806 | -9/Materials | Lost 4 parts (2n2w) 826 | -9/Materials | Core integrity fell below 50% 929 | -9/Materials | Discovered new exit (range 10) 984 | -9/Materials | Core integrity fell below 20% 1057 | -9/Materials | Entered Mines 1102 | -9/Mines | Destroyed by G-34 Mercenary with Small Laser Last Messages --------------- 01011_ U-05 Engineer lays Concrete. 01014_ The unstable cave ceiling collapses. 01014_ U-05 Engineer builds a Wall. 01020_ R-06 Scavenger collects Lgt. Treads. 01020_ G-34 Mercenary destroyed. 01022_ System corrupted: Matter fused (-6). 01023_ U-05 Engineer lays Concrete. 01026_ Acquired 16 matter. 01026_ U-05 Engineer lays Concrete. 01027_ U-05 Engineer builds a Wall. 01028_ R-06 Scavenger collects Lgt. Ion Engine. 01029_ K-01 Serf collects debris. 01033_ K-01 Serf cleans the Terminal. LOCATION=UNKNOWN GOAL=ESCAPE 01094_ Mni. Grenade Launcher destroyed. 01094_ Destroyed Mni. Grenade Launcher. 01095_ Imp. Hover Unit destroyed. 01100_ Wheel destroyed. 01102_ Beam Rifle destroyed. Map ----- +----------------------------------------------------+ | ???????## ##???# #?????????? | | ???????# ###?# ### ##?????????? | | ???????# #?# #?# ##??????????? | | ???????# $ ### ### #???????????? | | ???????# #???????????? | | ??????## ##########???????????? | | ??????# ##????????????????????? | | ??????# ##?????????????????????? | | ??????## ##??????????????????????? | | ???????# #???????????????????????? | | ???????# #???????????????????????? | | ???????# #???????????????????????? | | ???????# #???????????????????????? | | ???????# #???????????????????????? | | ???????# #???????????????????????? | | ???????# #####???????????????????? | | ???????# #???????????????????? | | ???????# ### #???????? ##????????? | | ???????# #?# ### #????????? | | ???????# #?# #????????? | | ??????## #?####### #??????????? | | ??????# ##??????????????????????? | | ??????# #####??????????????????? | | ??????# g ### ##???????????? | | ??????# l #???????????? | | ??????# @g #???????????? | | ??????## ## #??????????? | | ???????## ##??? #????????? | | ????????# #?????? #???????? | | ????????# ???????? ????????? | | ???????? ?????????? ????????? | | ???????? ??????????? ????????? | | ???????? ?????????????????????? | | ???????? ?????????????????????? | | ???????? #????????????????????? | | ???????? ????????????????????? | | ???????? ????????????????????? | | ???????? ????????????????????? | | ??????? ???????????????????? | | ??????? ???????????????????? | | ??????? ????????????????????? | | ??????? ?????????????????????? | | ??????? ?????????????????????? | | ?????????????????????????????????? | | ?????????????????????????????????? | | ?????????????????????????????????? | | ?????????????????????????????????? | | ?????????????????????????????????? | | ?????????????????????????????????? | | ?????????????????????????????????? | +----------------------------------------------------+ Best States ------------- Heat Dissipation 28 Energy Generation 5 Energy Capacity 100 Matter Stores 300 Matter Capacity 300 Sight Range 18 Terrain Scan Density 10 Resistance: KI 20 Resistance: TH 20 Resistance: EX 20 Resistance: EM 20 Resistance: I 20 Resistance: S 20 Resistance: P 20 Evasion (%) 52 Offensive Hacking 10 Item Schematics ----------------- None Robot Schematics ------------------ None Fabricated ------------ Nothing Repaired ---------- Nothing Studied --------- None Alien Tech Used ----------------- None Achievements -------------- None Challenges ------------ None Game ------ Seed IonicNullDrivehammer Manual? 0 Play Time 00:20:44 Cumulative 29.7 hours Start 2026.06.28 @ 00:13:31 End 2026.06.28 @ 00:35:31 Sessions 1 Manual Loads 0 Difficulty Adventurer Special Mode None Game No. 69 Rogue 40 Adventurer 29 Explorer 0 Win Type - Total 0 Types 0/0/0/0/0/0/0/0/0/0 Lore% 13 Gallery% 27 Achievement% 17 Wizard Run 0 Options --------- Layout 1 ASCII 0 Keyboard 0 Movement Arrows Keybinds 0 Fullscreen 0 Font 28/SmallcapsGlow Map View 77x35 Zoom Use 0% Tactical HUD 1 Map Filters NONE Filters NONE Steam X RUN: fbe01b80-fd4a-4ca3-a1ef-3f5ca8cc4105